bitfinex/quotes_SOLUSD_20241113
["timestamp","ask_amount","ask_price","bid_price","bid_amount"]
[1731459312680,0.12549,211.04,211.0,23.62190987]
[1731459312875,6.1194,211.08,210.95,0.07922722]
[1731459313101,4.737,211.11,210.96,0.07918583]
[1731459313680,6.2193,211.14,211.0,0.07918583]
[1731459313883,41.72573201,211.2,211.0,0.07918583]
[1731459313884,22.077,211.2,211.03,0.15841305]
[1731459314092,6.2193,211.2,211.14,23.62190987]
[1731459314437,6.2193,211.2,211.09,23.62190987]
[1731459314438,0.12549,211.15,211.09,23.62190987]
[1731459315000,0.12549,211.16,211.09,23.62190987]
[1731459315398,23.902374,211.16,211.09,23.62190987]
[1731459315601,37.15559722,211.2,211.12,23.62190987]
[1731459315785,20.0,211.19,211.12,23.62190987]
[1731459315980,23.62190987,211.23,211.15,23.62190987]
[1731459316201,23.62190987,211.23,211.16,23.62190987]
[1731459316385,0.12549,211.18,211.09,16.5803]
[1731459316582,0.2,211.2,211.03,11.8465]
[1731459317086,0.1,211.2,211.03,11.8465]
[1731459317285,0.12549,211.18,211.03,11.8465]
[1731459317483,0.12549,211.14,211.03,11.8465]
[1731459317690,0.12549,211.09,211.03,11.8465]
[1731459317994,20.12549,211.07,211.01,28.36100987]
[1731459319200,20.12549,211.07,211.01,28.36090987]
[1731459320023,23.62190987,211.1,211.01,28.36090987]
[1731459320327,23.776884,211.09,211.01,40.20860987]
[1731459321714,0.12549,211.08,211.01,40.20860987]
[1731459321893,43.74739987,211.08,211.01,35.46960987]
[1731459322092,43.74739987,211.08,211.01,40.20870987]
[1731459322996,43.74739987,211.08,211.01,11.8477]
[1731459323399,0.12549,211.04,210.97,23.62190987]
[1731459323709,43.62190987,211.08,211.01,23.62190987]
[1731459323919,0.12549,211.07,211.01,23.62190987]
[1731459324121,23.62190987,211.1,211.03,23.62190987]
[1731459324300,4.7361,211.15,211.08,23.62190987]
[1731459324490,28.35780987,211.16,211.08,23.62190987]
[1731459325124,0.12549,211.13,211.06,23.62190987]
[1731459325294,23.62190987,211.12,211.04,23.62190987]
[1731459325495,0.12549,211.09,211.02,23.62190987]
[1731459325702,0.12549,211.09,211.0,16.5876]
[1731459325703,0.12549,211.09,211.04,23.62190987]
[1731459326610,23.74739987,211.08,211.0,35.47020987]
[1731459326797,23.74739987,211.06,211.0,11.8483]
[1731459327198,0.12549,211.06,211.0,40.20950987]
[1731459327907,23.62190987,211.05,210.97,23.62190987]
[1731459328215,0.12549,211.02,210.95,40.21300987]
[1731459328408,23.902374,211.02,210.95,35.47260987]
[1731459328719,23.902374,211.02,210.93,28.36270987]
[1731459328720,0.12549,211.0,210.93,28.36270987]
[1731459328925,0.12549,211.0,210.93,23.62190987]
[1731459329500,23.902374,211.0,210.93,23.62190987]
[1731459329818,28.641674,211.0,210.93,28.36270987]
[1731459330122,28.641674,211.0,210.9,11.8536]
[1731459330123,23.902374,210.98,210.91,23.62190987]
[1731459330312,20.0,211.0,210.93,23.62190987]
[1731459330616,0.12549,210.99,210.91,40.21640987]
[1731459330926,28.36120987,211.01,210.89,23.62190987]
[1731459330927,0.12549,210.95,210.89,23.62190987]
[1731459331127,23.776884,210.96,210.87,24.07714107]
[1731459331703,23.776884,210.96,210.87,28.81924107]
[1731459331906,4.7404,210.95,210.87,28.81924107]
[1731459332105,23.776884,210.96,210.89,23.62190987]
[1731459332307,23.776884,210.96,210.91,23.62190987]
[1731459332526,23.902374,210.96,210.89,23.62190987]
[1731459333204,28.642774,210.96,210.89,23.62190987]
[1731459334003,4.86589,210.96,210.87,35.93274107]
[1731459334325,23.62190987,210.93,210.87,0.4552312]
[1731459334828,0.12549,210.93,210.87,24.07714107]
[1731459335623,4.86649,210.93,210.87,24.07714107]
[1731459336120,48.48839987,210.93,210.87,0.4552312]
[1731459336324,23.62190987,210.89,210.87,0.4552312]
[1731459336952,0.12549,210.89,210.87,0.4552312]
[1731459337228,20.0,210.9,210.87,0.4552312]
[1731459337417,4.7418,210.89,210.87,0.4552312]
[1731459338328,28.36370987,210.89,210.87,0.4552312]
[1731459338626,7.31203821,210.91,210.86,23.62190987]
[1731459338803,4.7412,210.92,210.86,23.62190987]
[1731459339006,6.0608,210.94,210.89,23.62190987]
[1731459339309,10.8015,210.94,210.87,23.62190987]
[1731459339710,34.42340987,210.94,210.86,23.62190987]
[1731459340199,34.42340987,210.94,210.87,23.62190987]
[1731459340629,15.7727,210.96,210.9,23.62190987]
[1731459340831,28.36180987,210.98,210.91,23.62190987]
[1731459340999,0.12549,210.97,210.91,23.62190987]
[1731459341327,6.0765,210.99,210.93,23.62190987]
[1731459341705,16.5412,211.01,210.95,23.62190987]
[1731459341911,23.62190987,211.03,210.96,23.62190987]
[1731459342110,29.69840987,211.04,210.97,23.62190987]
[1731459342304,23.62190987,211.03,210.95,23.62190987]
[1731459342621,4.739,211.02,210.95,23.62190987]
[1731459342817,4.739,211.02,210.96,23.62190987]
[1731459343021,6.0765,211.04,210.98,23.62190987]
[1731459343727,23.62190987,211.06,210.99,23.62190987]
[1731459343909,28.35950987,211.08,211.01,23.62190987]
[1731459344230,23.62190987,211.07,210.99,23.62190987]
[1731459344419,34.56970987,211.09,211.01,28.36080987]
[1731459344912,43.67730987,211.11,211.03,23.62190987]
[1731459345119,28.35840987,211.13,211.06,23.62190987]
[1731459345427,23.62190987,211.11,211.04,23.62190987]
[1731459345628,23.74739987,211.12,211.04,23.62190987]
[1731459345816,23.74739987,211.12,211.05,23.62190987]
[1731459346126,23.74739987,211.12,211.01,16.5866]
[1731459346127,28.35850987,211.12,211.04,28.36020987]
[1731459346327,4.8366,211.12,210.98,23.62190987]
[1731459346519,23.62190987,211.02,210.96,16.5901]
[1731459346725,23.62190987,211.05,210.97,23.62190987]
[1731459347207,6.26652214,211.11,210.93,23.62190987]
[1731459347208,30.03210987,211.01,210.93,23.62190987]
[1731459347407,6.4102,211.01,210.95,23.62190987]
[1731459347608,23.62190987,211.04,210.97,23.62190987]
[1731459348329,23.62190987,211.04,210.97,28.36180987]
[1731459348636,28.36030987,211.04,210.97,4.7399]
[1731459348822,23.62190987,211.04,210.97,40.21180987]
[1731459349015,30.03210987,211.06,210.97,40.21180987]
[1731459349536,16.5099,211.09,211.01,23.62190987]
[1731459349722,6.4102,211.11,211.05,23.62190987]
[1731459350034,0.12549,211.13,211.05,23.62190987]
[1731459350219,23.62190987,211.14,211.05,23.62190987]
[1731459350617,21.2459,211.15,211.03,0.07918583]
[1731459350618,16.5099,211.15,211.07,23.62190987]
[1731459350930,30.03210987,211.16,211.09,23.62190987]
[1731459351138,6.4102,211.16,211.09,23.62190987]
[1731459351346,23.62190987,211.19,211.12,23.62190987]
[1731459351508,23.62190987,211.2,211.13,23.62190987]
[1731459351713,23.62190987,211.2,211.12,23.62190987]
[1731459352033,23.62190987,211.23,211.15,23.62190987]
[1731459352211,23.62190987,211.23,211.16,23.62190987]
[1731459352726,6.4102,211.27,211.22,23.62190987]
[1731459352928,28.35480987,211.29,211.17,16.5743]
[1731459353130,23.62190987,211.3,211.22,23.62190987]
[1731459353539,23.62190987,211.28,211.2,23.62190987]
[1731459353714,23.62190987,211.26,211.2,23.62190987]
[1731459354129,23.62190987,211.28,211.2,23.62190987]
[1731459354316,23.62190987,211.28,211.2,28.35650987]
[1731459354817,23.62190987,211.26,211.18,28.35700987]
[1731459356458,28.35470987,211.29,211.22,23.62190987]
[1731459356737,23.62190987,211.29,211.22,23.62190987]
[1731459357119,23.62190987,211.31,211.24,23.62190987]
[1731459357320,23.62190987,211.35,211.28,23.62190987]
[1731459357540,0.12549,211.34,211.26,23.62190987]
[1731459357715,28.35400987,211.33,211.24,23.62190987]
[1731459357915,0.12549,211.32,211.24,23.62190987]
[1731459358111,23.62190987,211.31,211.24,23.62190987]
[1731459358640,23.62190987,211.27,211.22,11.8357]
[1731459359328,23.62190987,211.29,211.22,11.8357]
[1731459359524,28.35420987,211.31,211.24,23.62190987]
[1731459359840,43.62190987,211.3,211.22,40.19200987]
[1731459360140,23.62190987,211.29,211.22,40.19200987]
[1731459360348,23.62190987,211.32,211.25,23.62190987]
[1731459360635,4.7312,211.36,211.22,16.5701]
[1731459360636,23.62190987,211.34,211.27,23.62190987]
[1731459360823,23.62190987,211.35,211.27,23.62190987]
[1731459361022,23.62190987,211.36,211.28,23.62190987]
[1731459361218,4.7311,211.37,211.29,23.62190987]
[1731459361541,24.07714107,211.4,211.33,23.62190987]
[1731459361729,28.80754107,211.4,211.31,23.62190987]
[1731459362131,0.4552312,211.4,211.35,23.62190987]
[1731459362628,0.4552312,211.4,211.39,23.62190987]
[1731459362935,0.4552312,211.4,211.35,0.07918583]
[1731459362936,0.4552312,211.4,211.37,23.62190987]
[1731459363239,0.4552312,211.4,211.39,23.62190987]
[1731459363439,0.4552312,211.4,211.39,23.7010957]
[1731459363647,23.62190987,211.57,211.42,0.07918583]
[1731459363826,23.62190987,211.57,211.48,23.62190987]
[1731459364027,23.62190987,211.58,211.5,23.62190987]
[1731459364342,6.6132312,211.61,211.45,0.07918583]
[1731459364343,0.4552312,211.61,211.53,23.62190987]
[1731459364719,23.62190987,211.54,211.47,23.62190987]
[1731459364931,0.1,211.56,211.39,16.5569]
[1731459365244,0.12549,211.52,211.3,45.4564]
[1731459365420,0.12549,211.52,211.2,23.6732]
[1731459365421,0.1,211.48,211.25,0.07922722]
[1731459365624,23.902374,211.46,211.26,4.7335]
[1731459366037,38.31848056,211.37,211.29,38.31848056]
[1731459366243,38.31848056,211.39,211.31,38.31848056]
[1731459366422,20.0,211.45,211.26,16.5672]
[1731459366423,38.31848056,211.33,211.26,16.5672]
[1731459366746,38.31848056,211.33,211.25,38.31848056]
[1731459366927,38.31848056,211.35,211.27,38.31848056]
[1731459367648,38.31848056,211.33,211.25,38.31848056]
[1731459367820,38.31848056,211.33,211.23,11.8354]
[1731459367821,38.31848056,211.31,211.23,50.15388056]
[1731459368028,38.44397056,211.33,211.23,54.88798056]
[1731459368548,38.31848056,211.37,211.29,38.31848056]
[1731459368847,0.12549,211.36,211.29,38.31848056]
[1731459369043,38.31848056,211.35,211.26,38.31848056]
[1731459369225,38.31848056,211.35,211.28,38.31848056]
[1731459369538,38.31848056,211.37,211.3,38.31848056]
[1731459369749,38.31848056,211.37,211.3,43.05088056]
[1731459370342,38.31848056,211.37,211.3,50.14998056]
[1731459370641,38.31848056,211.32,211.25,11.8342]
[1731459370848,38.31848056,211.28,211.2,43.05318056]
[1731459371833,38.31848056,211.24,211.16,38.31848056]
[1731459372042,4.7331,211.28,211.16,38.31848056]
[1731459372043,38.31848056,211.26,211.18,38.31848056]
[1731459372756,38.31848056,211.28,211.2,38.31848056]
[1731459373048,38.31848056,211.22,211.16,4.7357]
[1731459373628,0.12549,211.3,211.16,4.7357]
[1731459373629,38.31848056,211.26,211.18,38.31848056]
[1731459374025,38.31848056,211.22,211.16,4.7357]
[1731459374226,38.31848056,211.2,211.15,11.8399]
[1731459374646,38.31848056,211.2,211.15,16.5758]
[1731459374863,38.31848056,211.22,211.15,16.5758]
[1731459375146,38.31848056,211.24,211.16,38.31848056]
[1731459375946,38.31848056,211.22,211.16,16.5748]
[1731459376136,38.31848056,211.24,211.16,54.89328056]
[1731459376329,4.7329,211.29,211.18,38.31848056]
[1731459376525,38.31848056,211.26,211.18,38.31848056]
[1731459376950,38.31848056,211.24,211.16,54.89328056]
[1731459377150,38.31848056,211.24,211.16,16.5748]
[1731459377351,38.31848056,211.26,211.18,38.31848056]
[1731459377846,38.31848056,211.26,211.19,4.735]
[1731459378051,38.31848056,211.24,211.19,4.735]
[1731459378247,38.31848056,211.22,211.17,4.7353]
[1731459378431,38.31848056,211.24,211.17,4.7353]
[1731459378633,38.31848056,211.26,211.19,38.31848056]
[1731459379042,38.31848056,211.26,211.17,16.5741]
[1731459379237,38.31848056,211.26,211.18,38.31848056]
[1731459379549,38.31848056,211.28,211.2,38.31848056]
[1731459379735,38.31848056,211.28,211.21,4.7346]
[1731459379934,38.31848056,211.3,211.22,38.31848056]
[1731459380344,23.6468,211.45,211.27,38.31848056]
[1731459380345,38.31848056,211.34,211.27,38.31848056]
[1731459380553,38.31848056,211.35,211.27,38.31848056]
[1731459380757,38.31848056,211.31,211.23,38.31848056]
[1731459380961,38.31848056,211.24,211.16,38.31848056]
[1731459381157,38.31848056,211.2,211.15,11.8395]
[1731459382349,38.31848056,211.22,211.15,11.8395]
[1731459383138,38.31848056,211.18,211.15,11.8395]
[1731459383341,38.31848056,211.2,211.15,11.8395]
[1731459383549,38.31848056,211.25,211.17,38.31848056]
[1731459383733,38.31848056,211.23,211.15,50.15798056]
[1731459383933,38.31848056,211.23,211.15,54.89388056]
[1731459384131,38.31848056,211.21,211.15,16.5754]
[1731459384542,38.31848056,211.19,211.15,16.5754]
[1731459384833,38.31848056,211.21,211.15,16.5754]
[1731459386360,38.31848056,211.21,211.15,11.8395]
[1731459386656,38.31848056,211.19,211.13,4.7363]
[1731459387365,38.31848056,211.21,211.13,43.05478056]
[1731459387548,38.31848056,211.19,211.13,4.7363]
[1731459387737,38.31848056,211.21,211.13,43.05478056]
[1731459388359,38.31848056,211.19,211.12,11.8416]
[1731459388540,38.31848056,211.13,211.07,11.844]
[1731459388858,38.31848056,211.09,211.02,16.5855]
[1731459389648,38.31848056,211.11,211.03,38.31848056]
[1731459389851,38.31848056,211.11,211.04,16.5844]
[1731459390059,38.31848056,211.13,211.05,38.31848056]
[1731459390562,38.31848056,211.15,211.07,38.31848056]
[1731459390748,38.31848056,211.18,211.1,38.31848056]
[1731459391256,38.31848056,211.2,211.12,38.31848056]
[1731459391457,38.31848056,211.21,211.14,38.31848056]
[1731459391756,38.31848056,211.23,211.15,38.31848056]
[1731459391959,38.31848056,211.21,211.14,16.576]
[1731459392259,38.31848056,211.21,211.05,0.07918583]
[1731459392260,38.31848056,211.2,211.12,54.89648056]
[1731459392467,7.32829107,211.23,211.12,16.578]
[1731459392468,38.31848056,211.18,211.12,16.578]
[1731459392760,38.31848056,211.21,211.14,38.31848056]
[1731459392958,38.31848056,211.22,211.14,38.31848056]
[1731459393173,38.31848056,211.22,211.16,38.31848056]
[1731459393348,38.31848056,211.24,211.16,38.31848056]
[1731459393558,0.12549,211.16,210.95,18.94063]
[1731459393747,38.31848056,211.07,210.99,38.31848056]
[1731459393949,38.31848056,211.05,210.97,43.05848056]
[1731459394244,4.7378,211.07,210.97,11.85]
[1731459394245,38.31848056,211.03,210.97,11.85]
[1731459394441,4.7378,211.07,210.92,50.17108056]
[1731459394442,38.31848056,210.99,210.92,50.17108056]
[1731459394648,38.31848056,211.03,210.96,38.31848056]
[1731459394854,38.31848056,211.05,210.98,38.31848056]
[1731459395064,38.31848056,211.05,210.96,38.31848056]
[1731459395556,38.31848056,211.05,210.98,38.31848056]
[1731459396062,38.31848056,211.05,210.97,16.59]
[1731459396764,38.31848056,211.05,210.98,38.31848056]
[1731459397953,38.31848056,211.05,210.99,4.7395]
[1731459398154,38.31848056,211.07,211.0,38.31848056]
[1731459398852,38.31848056,211.05,210.99,16.5884]
[1731459399050,38.31848056,211.05,210.99,11.8489]
[1731459405180,38.31848056,211.01,210.95,4.7403]
[1731459405382,38.31848056,210.99,210.95,4.7403]
[1731459406078,38.31848056,211.01,210.95,4.7403]
[1731459406271,38.31848056,211.01,210.95,16.5914]
[1731459406861,23.69607879,211.02,210.95,16.5914]
[1731459407595,23.19607879,211.02,210.95,16.5914]
[1731459408880,23.69607879,211.04,210.95,16.5914]
[1731459410955,23.69607879,211.02,210.95,16.5914]
[1731459413777,23.69607879,211.0,210.95,11.8511]
[1731459413969,23.69607879,211.0,210.95,16.5915]
[1731459414277,23.69607879,211.05,210.98,23.69607879]
[1731459415081,23.69607879,211.06,210.97,23.69607879]
[1731459415262,23.69607879,211.06,210.98,4.7397]
[1731459415263,23.69607879,211.04,210.98,4.7397]
[1731459415453,23.69607879,211.0,210.95,11.8511]
[1731459415658,23.69607879,210.96,210.91,4.7411]
[1731459416354,23.69607879,210.94,210.9,11.8538]
[1731459416560,23.69607879,210.94,210.9,16.5953]
[1731459417384,23.69607879,210.94,210.9,11.8538]
[1731459418692,23.69607879,210.96,210.9,11.8538]
[1731459419177,23.69607879,211.0,210.92,23.69607879]
[1731459420574,23.69607879,211.0,210.93,16.5931]
[1731459421163,23.69607879,211.0,210.93,40.28917879]
[1731459422187,23.69607879,210.99,210.93,16.5931]
[1731459422482,4.7388,211.02,210.88,23.7101]
[1731459422483,23.69607879,211.01,210.94,23.69607879]
[1731459422684,23.69607879,211.0,210.93,23.69607879]
[1731459423069,23.69607879,211.0,210.92,23.69607879]
[1731459423262,23.69607879,210.98,210.9,23.69607879]
[1731459423465,23.69607879,210.98,210.91,23.69607879]
[1731459423666,23.69607879,210.99,210.91,23.69607879]
[1731459424385,28.43577879,210.99,210.91,28.43717879]
[1731459424574,23.69607879,210.96,210.89,28.43767879]
[1731459424777,23.69607879,210.92,210.87,0.4552312]
[1731459424978,23.69607879,210.9,210.87,0.4552312]
[1731459425693,23.69607879,210.88,210.87,0.4552312]
[1731459425887,23.82156879,210.88,210.87,0.4552312]
[1731459426186,67.51764758,210.88,210.87,0.4552312]
[1731459426366,43.776884,210.87,210.69,23.69607879]
[1731459426565,43.776884,210.87,210.66,15.6811312]
[1731459426566,6.5921,210.81,210.7,11.8649]
[1731459426784,23.69607879,210.72,210.66,20.4280312]
[1731459427086,23.69607879,210.72,210.66,0.4552312]
[1731459427384,44.002374,210.8,210.66,12.3226312]
[1731459427578,23.69607879,210.72,210.66,12.3226312]
[1731459427778,23.69607879,210.75,210.68,23.69607879]
[1731459427977,23.69607879,210.76,210.69,23.69607879]
[1731459428301,23.69607879,210.77,210.7,23.69607879]
[1731459428585,23.69607879,210.76,210.68,23.69607879]
[1731459428789,23.69607879,210.76,210.69,23.69607879]
[1731459428971,23.69607879,210.76,210.68,23.69607879]
[1731459429174,23.69607879,210.73,210.66,40.76560999]
[1731459430072,23.69607879,210.75,210.67,23.69607879]
[1731459430492,23.69607879,210.75,210.68,4.7465]
[1731459430686,4.7445,210.77,210.66,12.3226312]
[1731459430687,23.69607879,210.73,210.66,40.76560999]
[1731459431094,23.69607879,210.72,210.66,17.0695312]
[1731459431478,23.69607879,210.73,210.66,17.0695312]
[1731459431678,23.69607879,210.72,210.66,17.0695312]
[1731459432002,23.69607879,210.73,210.66,17.0695312]
[1731459432791,23.69607879,210.74,210.66,40.76560999]
[1731459432992,23.69607879,210.77,210.7,23.69607879]
[1731459433674,23.69607879,210.77,210.7,28.44187879]
[1731459433875,23.69607879,210.78,210.7,40.30707879]
[1731459434878,23.69607879,210.81,210.74,23.69607879]
[1731459435079,23.69607879,210.8,210.72,23.69607879]
[1731459435989,23.69607879,210.8,210.73,4.7454]
[1731459437296,23.69607879,210.78,210.71,4.7458]
[1731459437595,23.69607879,210.73,210.67,4.7466]
[1731459437801,23.69607879,210.75,210.68,23.69607879]
[1731459438177,23.69607879,210.75,210.68,40.30867879]
[1731459438378,23.69607879,210.77,210.69,23.69607879]
[1731459439308,23.69607879,210.75,210.68,16.6126]
[1731459439990,23.69607879,210.72,210.66,5.2021312]
[1731459440188,23.69607879,210.67,210.66,0.4552312]
[1731459444088,23.82156879,210.67,210.66,0.4552312]
[1731459444687,47.59845279,210.67,210.66,0.4552312]
[1731459444891,67.79845279,210.67,210.66,0.4552312]
[1731459445096,0.22549,210.64,210.51,4.7503]
[1731459445391,0.22549,210.64,210.49,11.8768]
[1731459445392,23.69607879,210.57,210.49,11.8768]
[1731459445596,23.69607879,210.55,210.49,16.6276]
[1731459445907,23.69607879,210.56,210.49,11.8768]
[1731459446077,23.69607879,210.57,210.5,23.69607879]
[1731459446690,23.69607879,210.53,210.49,11.8768]
[1731459447281,23.69607879,210.51,210.45,5.2067312]
[1731459447694,23.69607879,210.51,210.45,5.2069312]
[1731459447881,23.69607879,210.51,210.45,28.90300999]
[1731459448088,23.69607879,210.53,210.45,40.78230999]
[1731459448884,23.69607879,210.51,210.45,17.0862312]
[1731459449283,23.69607879,210.51,210.45,0.4552312]
[1731459449488,23.69607879,210.53,210.45,28.90280999]
[1731459449994,23.69607879,210.57,210.49,23.69607879]
[1731459450503,23.69607879,210.51,210.45,0.4552312]
[1731459450709,23.69607879,210.49,210.45,0.4552312]
[1731459451004,23.69607879,210.47,210.45,0.4552312]
[1731459451183,28.44747879,210.47,210.45,0.4552312]
[1731459451704,23.69607879,210.47,210.45,0.4552312]
[1731459452887,20.22549,210.46,210.45,0.4552312]
[1731459453087,44.002374,210.46,210.31,4.7548]
[1731459453284,23.69607879,210.4,210.32,23.69607879]
[1731459453500,23.69607879,210.42,210.34,23.69607879]
[1731459454109,23.69607879,210.44,210.36,23.69607879]
[1731459454709,23.69607879,210.42,210.36,23.69607879]
[1731459455013,23.69607879,210.42,210.34,23.69607879]
[1731459455387,23.69607879,210.42,210.35,16.6388]
[1731459458698,28.44857879,210.42,210.35,16.6388]
[1731459459000,23.69607879,210.38,210.35,11.8849]
[1731459459200,4.7525,210.42,210.35,11.8849]
[1731459459201,23.69607879,210.4,210.35,11.8849]
[1731459459798,23.69607879,210.4,210.35,16.6388]
[1731459459998,23.69607879,210.42,210.35,16.6388]
[1731459460208,23.69607879,210.42,210.35,40.33487879]
[1731459460395,23.69607879,210.44,210.35,40.33487879]
[1731459460802,23.69607879,210.45,210.37,23.69607879]
[1731459461006,23.69607879,210.43,210.35,40.33487879]
[1731459461219,23.69607879,210.45,210.38,23.69607879]
[1731459461421,23.69607879,210.45,210.37,23.69607879]
[1731459461622,23.69607879,210.42,210.35,40.33487879]
[1731459461925,23.69607879,210.46,210.35,16.6388]
[1731459462218,31.00239702,210.5,210.42,23.69607879]
[1731459462424,23.69607879,210.52,210.45,23.69607879]
[1731459462606,15.4547,210.54,210.38,15.81342722]
[1731459462607,23.69607879,210.5,210.43,23.69607879]
[1731459462796,23.69607879,210.51,210.44,23.69607879]
[1731459463196,23.69607879,210.46,210.38,23.69607879]
[1731459463396,23.69607879,210.49,210.41,23.69607879]
[1731459463604,23.69607879,210.51,210.43,23.69607879]
[1731459463807,23.69607879,210.51,210.35,0.20467583]
[1731459463808,23.69607879,210.5,210.42,23.69607879]
[1731459464016,23.69607879,210.5,210.43,23.69607879]
[1731459464221,23.69607879,210.5,210.44,4.7519]
[1731459464730,23.69607879,210.49,210.43,16.6319]
[1731459465023,6.6465,210.56,210.48,23.69607879]
[1731459465024,23.69607879,210.56,210.48,23.69607879]
[1731459465217,4.7478,210.62,210.43,46.7745]
[1731459465415,23.69607879,210.55,210.48,23.69607879]
[1731459465624,23.69607879,210.62,210.54,23.69607879]
[1731459465928,23.69607879,210.59,210.52,23.69607879]
[1731459466105,23.69607879,210.57,210.43,46.85372722]
[1731459466421,7.43768581,210.62,210.52,23.69607879]
[1731459466422,23.69607879,210.59,210.52,23.69607879]
[1731459466624,23.69607879,210.55,210.47,23.69607879]
[1731459466921,0.12549,210.6,210.5,23.69607879]
[1731459467105,23.69607879,210.57,210.49,23.69607879]
[1731459467303,23.69607879,210.56,210.49,28.44677879]
[1731459468122,4.7485,210.59,210.49,28.44677879]
[1731459468123,23.69607879,210.57,210.49,28.44677879]
[1731459468430,28.44537879,210.56,210.49,28.44677879]
[1731459469230,4.7493,210.56,210.49,28.44677879]
[1731459470219,23.69607879,210.6,210.52,23.69607879]
[1731459470418,31.0082746,210.62,210.55,23.69607879]
[1731459471134,39.51597879,210.65,210.57,23.69607879]
[1731459471309,23.69607879,210.63,210.56,23.69607879]
[1731459471510,20.5672,210.65,210.49,40.46092722]
[1731459471511,23.69607879,210.66,210.58,23.69607879]
[1731459471710,30.09867879,210.68,210.61,23.69607879]
[1731459472061,6.4026,210.68,210.62,23.69607879]
[1731459472207,23.69607879,210.73,210.66,23.69607879]
[1731459472531,23.69607879,210.69,210.63,11.8691]
[1731459472934,0.1,210.72,210.57,11.8722]
[1731459473113,0.1,210.72,210.57,16.6212]
[1731459473317,23.69607879,210.63,210.57,16.6212]
[1731459473839,23.69607879,210.64,210.57,16.6212]
[1731459474035,23.69607879,210.6,210.57,11.8722]
[1731459474212,23.69607879,210.61,210.57,11.8722]
[1731459474412,4.7465,210.68,210.57,35.56827879]
[1731459474618,23.69607879,210.66,210.59,23.69607879]
[1731459474816,23.69607879,210.67,210.59,23.69607879]
[1731459475026,4.7457,210.72,210.63,23.69607879]
[1731459475331,23.69607879,210.72,210.65,23.69607879]
[1731459475937,23.69607879,210.72,210.64,23.69607879]
[1731459476136,23.69607879,210.7,210.63,28.44367879]
[1731459476346,23.69607879,210.7,210.62,23.69607879]
[1731459476634,23.69607879,210.69,210.61,35.56597879]
[1731459476810,23.69607879,210.67,210.61,40.31387879]
[1731459477013,23.69607879,210.65,210.61,11.8699]
[1731459477339,23.69607879,210.65,210.58,23.69607879]
[1731459477634,23.69607879,210.66,210.58,23.69607879]
[1731459478213,23.876884,210.73,210.57,23.69607879]
[1731459478214,28.44327879,210.65,210.57,23.69607879]
[1731459478533,23.69607879,210.65,210.58,23.69607879]
[1731459480235,23.69607879,210.69,210.62,23.69607879]
[1731459480443,23.69607879,210.71,210.63,23.69607879]
[1731459480737,28.44197879,210.71,210.63,23.69607879]
[1731459480931,23.69607879,210.71,210.63,23.69607879]
[1731459481136,23.69607879,210.69,210.61,40.31437879]
[1731459481318,23.69607879,210.67,210.61,16.6183]
[1731459481729,23.69607879,210.69,210.61,40.31437879]
[1731459482144,23.69607879,210.67,210.59,28.44447879]
[1731459482317,23.69607879,210.65,210.57,16.6213]
[1731459482519,23.69607879,210.65,210.58,23.69607879]
[1731459483412,23.69607879,210.63,210.57,11.8725]
[1731459483832,23.69607879,210.63,210.49,23.754]
[1731459483833,23.69607879,210.59,210.53,4.7497]
[1731459484022,23.69607879,210.61,210.53,28.44577879]
[1731459484221,23.69607879,210.61,210.54,23.69607879]
[1731459484422,23.69607879,210.61,210.53,28.44577879]
[1731459484939,23.12832034,210.7,210.58,23.69607879]
[1731459484940,23.69607879,210.66,210.58,23.69607879]
[1731459485317,23.69607879,210.65,210.57,23.69607879]
[1731459485518,28.44337879,210.65,210.57,28.44487879]
[1731459485817,23.69607879,210.62,210.56,11.8726]
[1731459486012,23.69607879,210.61,210.56,11.8726]
[1731459486217,28.44337879,210.65,210.57,23.69607879]
[1731459486436,0.80935904,210.82,210.56,16.6218]
[1731459486437,23.69607879,210.67,210.59,23.69607879]
[1731459486643,23.69607879,210.65,210.58,23.69607879]
[1731459486818,12.05512674,210.71,210.56,16.6218]
[1731459487125,0.12549,210.7,210.56,16.6218]
[1731459487324,0.22549,210.7,210.49,23.754]
[1731459487518,4.7463,210.69,210.5,23.776884]
[1731459487720,4.7463,210.69,210.51,0.07922722]
[1731459487917,14.86083033,210.64,210.57,14.86083033]
[1731459488118,14.86083033,210.64,210.51,0.07922722]
[1731459488119,14.86083033,210.7,210.63,14.86083033]
[1731459488320,14.86083033,210.71,210.64,14.86083033]
[1731459488536,14.86083033,210.71,210.63,14.86083033]
[1731459489238,14.86083033,210.67,210.61,14.86083033]
[1731459489424,14.86083033,210.64,210.59,11.8713]
[1731459489625,14.86083033,210.62,210.55,19.61013033]
[1731459489835,14.86083033,210.63,210.55,31.48373033]
[1731459490437,14.86083033,210.61,210.55,11.8736]